fUSD/lending_fUSD_20260612
["ID","MTS","AMOUNT","RATE_DAILY","PERIOD"]
[424913638,1781268643000,-290.0,0.00024,2]
[424913592,1781268643000,-3000.0,0.00022622,2]
[424913618,1781268643000,-233.5188934,0.00023269,2]
[424913625,1781268643000,-1462.5,0.00023565,2]
[424913637,1781268643000,-2668.0,0.00024,7]
[424913614,1781268643000,-150.0,0.00023014,2]
[424913596,1781268643000,-225.18697532,0.00022721,2]
[424913616,1781268643000,-896.0,0.00023196,7]
[424913600,1781268643000,-552.397385,0.00022938,7]
[424913594,1781268643000,-151.94035643,0.00022721,2]
[424913595,1781268643000,-282.77066412,0.00022721,2]
[424913601,1781268643000,-7343.44906484,0.00022971,2]
[424913602,1781268643000,-300.40395902,0.00022992,2]
[424913598,1781268643000,-151.0,0.00022721,2]
[424913597,1781268643000,-270.0455652,0.00022721,2]
[424913603,1781268643000,-1979.95626,0.00023,2]
[424913604,1781268643000,-290.0,0.00023,2]
[424913599,1781268643000,-2682.57183977,0.00022721,2]
[424913606,1781268643000,-319.0,0.00023,2]
[424913612,1781268643000,-849.0,0.00023,2]
[424913607,1781268643000,-265.0,0.00023,2]
[424913611,1781268643000,-256.0,0.00023,2]
[424913610,1781268643000,-417.0,0.00023,2]
[424913609,1781268643000,-155.0,0.00023,2]
[424913608,1781268643000,-558.0,0.00023,2]
[424913613,1781268643000,-258.0,0.00023,2]
[424913605,1781268643000,-396.0,0.00023,2]
[424913615,1781268643000,-1000.0,0.000231,2]
[424913678,1781268644000,-215.6356607,0.00025,2]
[424913667,1781268644000,-6300.0,0.000249,9]
[424913665,1781268644000,-350.0,0.00024744,2]
[424913666,1781268644000,-194.07209463,0.000249,2]
[424913669,1781268644000,-260.4103811,0.00024913,2]
[424913674,1781268644000,-537.33,0.00025,7]
[424913673,1781268644000,-239.59517856,0.00025,2]
[424913677,1781268644000,-215.6356607,0.00025,2]
[424913676,1781268644000,-262.15025503,0.00025,2]
[424913681,1781268644000,-407.59594428,0.00025,2]
[424913679,1781268644000,-297.0,0.00025,2]
[424913693,1781268644000,-150.0,0.00025373,2]
[424913680,1781268644000,-194.07209463,0.00025,2]
[424913675,1781268644000,-567.49,0.00025,7]
[424913684,1781268644000,-562.0,0.00025,2]
[424913683,1781268644000,-276.57120461,0.00025,2]
[424913685,1781268644000,-266.0,0.00025,2]
[424913686,1781268644000,-270.0,0.00025,2]
[424913687,1781268644000,-405.0,0.00025,2]
[424913688,1781268644000,-1770.42,0.00025029,7]
[424913691,1781268644000,-11862.6571249,0.00025216,2]
[424913689,1781268644000,-3238.55089301,0.00025116,2]
[424913670,1781268644000,-241.0,0.00024932,2]
[424913682,1781268644000,-323.0,0.00025,2]
[424913668,1781268644000,-282.77066412,0.00024913,2]
[424913643,1781268644000,-165.0,0.00024,2]
[424913663,1781268644000,-178.7270565,0.00024658,2]
[424913641,1781268644000,-265.0,0.00024,2]
[424913642,1781268644000,-558.0,0.00024,2]
[424913640,1781268644000,-319.0,0.00024,2]
[424913690,1781268644000,-899441.4105469,0.00025216,2]
[424913646,1781268644000,-865.9981003,0.00024,2]
[424913645,1781268644000,-256.0,0.00024,2]
[424913644,1781268644000,-427.76701402,0.00024,2]
[424913648,1781268644000,-3541.2290907,0.00024047,2]
[424913647,1781268644000,-258.0,0.00024,2]
[424913649,1781268644000,-15354.07879744,0.00024051,2]
[424913650,1781268644000,-184.0418703,0.00024064,14]
[424913664,1781268644000,-837.99,0.0002474,7]
[424913651,1781268644000,-150.0,0.00024164,2]
[424913656,1781268644000,-151.0,0.00024363,2]
[424913659,1781268644000,-2991.49051684,0.00024365,2]
[424913652,1781268644000,-241.0,0.00024247,2]
[424913657,1781268644000,-282.77066412,0.00024365,2]
[424913653,1781268644000,-1305.7,0.00024324,2]
[424913654,1781268644000,-621.78829552,0.00024363,2]
[424913661,1781268644000,-1000.0,0.00024658,2]
[424913662,1781268644000,-714.82,0.00024658,2]
[424913660,1781268644000,-3009.32,0.00024658,2]
[424913671,1781268644000,-2229.0,0.00025,2]
[424913672,1781268644000,-239.59517855,0.00025,2]
[424913658,1781268644000,-251.11897888,0.00024365,2]
[424913692,1781268644000,-7343.44906484,0.00025261,2]
[424913655,1781268644000,-775.4783256,0.00024363,2]
[424913697,1781268644000,-3556.0,0.00025443,2]
[424913718,1781268644000,-151.0,0.0002594,2]
[424913725,1781268644000,-151.0,0.0002594,2]
[424913721,1781268644000,-168.449244,0.0002594,2]
[424913736,1781268644000,-1191.476515,0.0002594,2]
[424913737,1781268644000,-155.002431,0.0002594,2]
[424913728,1781268644000,-151.0,0.0002594,2]
[424913738,1781268644000,-1191.476515,0.0002594,2]
[424913734,1781268644000,-1191.476515,0.0002594,2]
[424913731,1781268644000,-485.361361,0.0002594,2]
[424913729,1781268644000,-485.361361,0.0002594,2]
[424913732,1781268644000,-485.361361,0.0002594,2]
[424913724,1781268644000,-151.0,0.0002594,2]
[424913735,1781268644000,-1191.476515,0.0002594,2]
[424913730,1781268644000,-485.361361,0.0002594,2]
[424913741,1781268644000,-4347.553885,0.0002594,2]
[424913694,1781268644000,-161.0,0.000254,7]
[424913747,1781268644000,-500.0,0.0002594,2]
[424913740,1781268644000,-155.002431,0.0002594,2]
[424913746,1781268644000,-500.0,0.0002594,2]
[424913742,1781268644000,-4347.553885,0.0002594,2]
[424913744,1781268644000,-4347.553885,0.0002594,2]
[424913745,1781268644000,-500.0,0.0002594,2]
[424913743,1781268644000,-4347.553885,0.0002594,2]
[424913748,1781268644000,-500.0,0.0002594,2]
[424913733,1781268644000,-155.002431,0.0002594,2]
[424913719,1781268644000,-168.449244,0.0002594,2]
[424913739,1781268644000,-155.002431,0.0002594,2]
[424913726,1781268644000,-282.135329,0.0002594,2]
[424913722,1781268644000,-168.449244,0.0002594,2]
[424913699,1781268644000,-282.77066412,0.00025461,2]
[424913696,1781268644000,-5295.94194067,0.00025443,2]
[424913695,1781268644000,-283.99,0.000254,7]
[424913704,1781268644000,-200.99797,0.0002578,2]
[424913701,1781268644000,-700.0,0.00025526,2]
[424913703,1781268644000,-521.2,0.0002575,7]
[424913698,1781268644000,-1275.0,0.00025443,2]
[424913700,1781268644000,-360.74839326,0.00025461,2]
[424913716,1781268644000,-275.998249,0.0002594,2]
[424913706,1781268644000,-200.99798,0.0002578,2]
[424913705,1781268644000,-200.99798,0.0002578,2]
[424913702,1781268644000,-241.0,0.00025617,2]
[424913708,1781268644000,-207.0,0.00025812,2]
[424913727,1781268644000,-152.656123,0.0002594,2]
[424913707,1781268644000,-361.0,0.00025812,2]
[424913723,1781268644000,-151.0,0.0002594,2]
[424913720,1781268644000,-168.449244,0.0002594,2]
[424913713,1781268644000,-1200.0,0.000259,9]
[424913717,1781268644000,-275.998249,0.0002594,2]
[424913712,1781268644000,-157.33036761,0.00025874,2]
[424913709,1781268644000,-200.0,0.00025831,2]
[424913715,1781268644000,-275.998249,0.0002594,2]
[424913710,1781268644000,-15354.07879744,0.0002584,2]
[424913714,1781268644000,-275.998249,0.0002594,2]
[424913711,1781268644000,-3541.2290907,0.0002584,2]
[424913770,1781268645000,-500.0,0.0002594,2]
[424913778,1781268645000,-500.0,0.0002594,2]
[424913771,1781268645000,-500.0,0.0002594,2]
[424913775,1781268645000,-500.0,0.0002594,2]
[424913772,1781268645000,-500.0,0.0002594,2]
[424913774,1781268645000,-500.0,0.0002594,2]
[424913779,1781268645000,-500.0,0.0002594,2]
[424913783,1781268645000,-500.0,0.0002594,2]
[424913773,1781268645000,-500.0,0.0002594,2]
[424913781,1781268645000,-500.0,0.0002594,2]
[424913776,1781268645000,-500.0,0.0002594,2]
[424913780,1781268645000,-500.0,0.0002594,2]
[424913793,1781268645000,-500.0,0.0002594,2]
[424913784,1781268645000,-500.0,0.0002594,2]
[424913769,1781268645000,-500.0,0.0002594,2]
[424913777,1781268645000,-500.0,0.0002594,2]
[424913765,1781268645000,-500.0,0.0002594,2]
[424913759,1781268645000,-500.0,0.0002594,2]
[424913768,1781268645000,-500.0,0.0002594,2]
[424913749,1781268645000,-500.0,0.0002594,2]
[424913751,1781268645000,-500.0,0.0002594,2]
[424913756,1781268645000,-500.0,0.0002594,2]
[424913750,1781268645000,-500.0,0.0002594,2]
[424913752,1781268645000,-500.0,0.0002594,2]
[424913753,1781268645000,-500.0,0.0002594,2]
[424913755,1781268645000,-500.0,0.0002594,2]
[424913767,1781268645000,-500.0,0.0002594,2]
[424913758,1781268645000,-500.0,0.0002594,2]
[424913757,1781268645000,-500.0,0.0002594,2]
[424913761,1781268645000,-500.0,0.0002594,2]
[424913763,1781268645000,-500.0,0.0002594,2]
[424913762,1781268645000,-500.0,0.0002594,2]
[424913760,1781268645000,-500.0,0.0002594,2]
[424913764,1781268645000,-500.0,0.0002594,2]
[424913766,1781268645000,-500.0,0.0002594,2]
[424913754,1781268645000,-500.0,0.0002594,2]
[424913785,1781268645000,-500.0,0.0002594,2]
[424913786,1781268645000,-500.0,0.0002594,2]
[424913789,1781268645000,-151.0,0.0002594,2]
[424913811,1781268645000,-500.0,0.0002594,2]
[424913810,1781268645000,-500.0,0.0002594,2]
[424913817,1781268645000,-500.0,0.0002594,2]
[424913816,1781268645000,-500.0,0.0002594,2]
[424913814,1781268645000,-500.0,0.0002594,2]
[424913809,1781268645000,-151.0,0.0002594,2]
[424913808,1781268645000,-500.0,0.0002594,2]
[424913813,1781268645000,-500.0,0.0002594,2]
[424913815,1781268645000,-323.692474,0.0002594,2]
[424913818,1781268645000,-500.0,0.0002594,2]
[424913821,1781268645000,-962.386408,0.0002594,2]
[424913820,1781268645000,-323.692474,0.0002594,2]
[424913823,1781268645000,-816.45296163,0.0002594,2]
[424913819,1781268645000,-500.0,0.0002594,2]
[424913822,1781268645000,-323.692474,0.0002594,2]
[424913812,1781268645000,-500.0,0.0002594,2]
[424913806,1781268645000,-500.0,0.0002594,2]
[424913807,1781268645000,-500.0,0.0002594,2]
[424913803,1781268645000,-151.0,0.0002594,2]
[424913788,1781268645000,-500.0,0.0002594,2]
[424913790,1781268645000,-500.0,0.0002594,2]
[424913787,1781268645000,-500.0,0.0002594,2]
[424913791,1781268645000,-500.0,0.0002594,2]
[424913792,1781268645000,-500.0,0.0002594,2]
[424913804,1781268645000,-500.0,0.0002594,2]
[424913796,1781268645000,-500.0,0.0002594,2]
[424913797,1781268645000,-500.0,0.0002594,2]
[424913794,1781268645000,-500.0,0.0002594,2]
[424913802,1781268645000,-500.0,0.0002594,2]
[424913805,1781268645000,-500.0,0.0002594,2]
[424913799,1781268645000,-500.0,0.0002594,2]
[424913801,1781268645000,-500.0,0.0002594,2]
[424913798,1781268645000,-151.0,0.0002594,2]
[424913800,1781268645000,-500.0,0.0002594,2]
[424913795,1781268645000,-500.0,0.0002594,2]
[424913782,1781268645000,-500.0,0.0002594,2]
[424913829,1781268646000,-287.59506586,0.0002594,2]
[424913826,1781268646000,-323.692474,0.0002594,2]
[424913825,1781268646000,-145.93344637,0.0002594,2]
[424913827,1781268646000,-424.09421268,0.0002594,2]
[424913828,1781268646000,-250.69712946,0.0002594,2]
[424913830,1781268646000,-962.386408,0.0002594,2]
[424913837,1781268646000,-334.84447698,0.0002594,2]
[424913831,1781268646000,-500.0,0.0002594,2]
[424913832,1781268646000,-500.0,0.0002594,2]
[424913834,1781268646000,-364.7321531,0.0002594,2]
[424913835,1781268646000,-135.2678469,0.0002594,2]
[424913833,1781268646000,-500.0,0.0002594,2]
[424913836,1781268646000,-500.0,0.0002594,2]
[424913857,1781268647000,-151.0,0.0002594,15]
[424913856,1781268647000,-151.0,0.0002594,15]
[424913855,1781268647000,-151.0,0.0002594,15]
[424913862,1781268647000,-151.0,0.0002594,15]
[424913861,1781268647000,-151.0,0.0002594,15]
[424913864,1781268647000,-151.0,0.0002594,15]
[424913863,1781268647000,-151.0,0.0002594,15]
[424913867,1781268647000,-151.0,0.0002594,15]
[424913870,1781268647000,-151.0,0.0002594,15]
[424913854,1781268647000,-151.0,0.0002594,15]
[424913868,1781268647000,-151.0,0.0002594,15]
[424913871,1781268647000,-273.641047,0.0002594,15]
[424913869,1781268647000,-151.0,0.0002594,15]
[424913866,1781268647000,-151.0,0.0002594,15]
[424913873,1781268647000,-151.0,0.0002594,2]
[424913872,1781268647000,-151.0,0.0002594,2]
[424913865,1781268647000,-151.0,0.0002594,15]
[424913860,1781268647000,-151.0,0.0002594,15]
[424913850,1781268647000,-391.926367,0.0002594,2]
[424913858,1781268647000,-151.0,0.0002594,15]
[424913874,1781268647000,-174.0,0.00025947,2]
[424913838,1781268647000,-82.97281513,0.0002594,2]
[424913840,1781268647000,-82.18270789,0.0002594,2]
[424913839,1781268647000,-151.9404,0.00018884,2]
[424913843,1781268647000,-500.0,0.0002594,2]
[424913841,1781268647000,-500.0,0.0002594,2]
[424913847,1781268647000,-500.0,0.0002594,2]
[424913859,1781268647000,-151.0,0.0002594,15]
[424913845,1781268647000,-500.0,0.0002594,2]
[424913842,1781268647000,-500.0,0.0002594,2]
[424913844,1781268647000,-500.0,0.0002594,2]
[424913848,1781268647000,-500.0,0.0002594,2]
[424913851,1781268647000,-151.0,0.0002594,15]
[424913849,1781268647000,-500.0,0.0002594,2]
[424913852,1781268647000,-151.0,0.0002594,15]
[424913853,1781268647000,-151.0,0.0002594,15]
[424913846,1781268647000,-500.0,0.0002594,2]
[424913876,1781268647000,-164.73,0.00026,2]
[424913912,1781268647000,-150.0,0.00026589,2]
[424913877,1781268647000,-200.0,0.00026,10]
[424913899,1781268647000,-2000.0,0.00026413,2]
[424913904,1781268647000,-2000.0,0.00026413,2]
[424913900,1781268647000,-2000.0,0.00026413,2]
[424913902,1781268647000,-2000.0,0.00026413,2]
[424913901,1781268647000,-2000.0,0.00026413,2]
[424913903,1781268647000,-2000.0,0.00026413,2]
[424913905,1781268647000,-1200.0,0.00026413,2]
[424913898,1781268647000,-2000.0,0.00026413,2]
[424913906,1781268647000,-361.0,0.00026497,2]
[424913910,1781268647000,-150.0,0.00026589,2]
[424913913,1781268647000,-150.0,0.00026589,2]
[424913909,1781268647000,-150.0,0.00026589,2]
[424913915,1781268647000,-150.0,0.00026641,2]
[424913914,1781268647000,-9999.99,0.00026591,2]
[424913911,1781268647000,-150.0,0.00026589,2]
[424913875,1781268647000,-161.0,0.00026,9]
[424913907,1781268647000,-282.77066412,0.00026557,2]
[424913896,1781268647000,-255.89260768,0.00026397,2]
[424913908,1781268647000,-150.0,0.00026589,2]
[424913895,1781268647000,-294.73994504,0.00026397,2]
[424913880,1781268647000,-5716.68729537,0.0002604,2]
[424913878,1781268647000,-282.77066412,0.00026009,2]
[424913881,1781268647000,-200.0,0.0002604,2]
[424913882,1781268647000,-269.04069097,0.0002604,2]
[424913879,1781268647000,-178.7270565,0.00026027,2]
[424913897,1781268647000,-2000.0,0.00026413,2]
[424913885,1781268647000,-200.99797,0.0002604,2]
[424913883,1781268647000,-200.99798,0.0002604,2]
[424913886,1781268647000,-2126.0,0.000261,2]
[424913888,1781268647000,-171.0,0.000261,2]
[424913891,1781268647000,-1305.7,0.00026296,2]
[424913893,1781268647000,-350.0,0.0002638,3]
[424913884,1781268647000,-200.99798,0.0002604,2]
[424913892,1781268647000,-241.0,0.00026302,2]
[424913890,1781268647000,-2000.0,0.00026178,7]
[424913887,1781268647000,-171.0,0.000261,2]
[424913894,1781268647000,-276.5335765,0.00026397,2]
[424913889,1781268647000,-300.0,0.000261,10]
[424913936,1781268648000,-1500.0,0.00027397,2]
[424913935,1781268648000,-204.71408614,0.00027397,7]
[424913937,1781268648000,-429.5941176,0.00027397,2]
[424913938,1781268648000,-300.0,0.00027397,2]
[424913940,1781268648000,-151.0,0.00027397,2]
[424913939,1781268648000,-151.0,0.00027397,2]
[424913941,1781268648000,-151.0,0.00027397,2]
[424913949,1781268648000,-154.009562,0.00027397,2]
[424913945,1781268648000,-388.19877,0.00027397,2]
[424913943,1781268648000,-388.19877,0.00027397,2]
[424913948,1781268648000,-154.009562,0.00027397,2]
[424913946,1781268648000,-154.009562,0.00027397,2]
[424913944,1781268648000,-388.19877,0.00027397,2]
[424913950,1781268648000,-714.82,0.00027397,2]
[424913933,1781268648000,-502.78,0.00027397,2]
[424913942,1781268648000,-388.19877,0.00027397,2]
[424913934,1781268648000,-170.59507179,0.00027397,7]
[424913928,1781268648000,-207.892926,0.00027182,2]
[424913931,1781268648000,-160.08697955,0.00027397,2]
[424913951,1781268648000,-4250.98,0.00027397,10]
[424913917,1781268648000,-152.0,0.0002688,3]
[424913918,1781268648000,-4330.0,0.00026908,10]
[424913916,1781268648000,-1770.42,0.00026705,7]
[424913920,1781268648000,-350.0,0.00026957,5]
[424913919,1781268648000,-3049.32,0.00026945,120]
[424913923,1781268648000,-644.79446245,0.00027102,2]
[424913922,1781268648000,-259.52,0.00027,2]
[424913921,1781268648000,-241.0,0.00026987,2]
[424913924,1781268648000,-804.17102365,0.00027102,2]
[424913927,1781268648000,-350.0,0.00027129,4]
[424913926,1781268648000,-282.77066417,0.00027105,2]
[424913925,1781268648000,-151.0,0.00027102,2]
[424913930,1781268648000,-178.7270565,0.00027396,2]
[424913929,1781268648000,-361.0,0.00027182,2]
[424913932,1781268648000,-294.1187234,0.00027397,7]
[424913953,1781268648000,-5530.99,0.00027397,10]
[424913947,1781268648000,-154.009562,0.00027397,2]
[424913952,1781268648000,-6637.19,0.00027397,10]
[424913975,1781268648000,-1033.54,0.0002755,30]
[424913974,1781268648000,-613.45,0.0002755,30]
[424913978,1781268648000,-612.34,0.0002755,30]
[424913977,1781268648000,-7946.79,0.0002755,30]
[424913976,1781268648000,-7949.64,0.0002755,30]
[424913982,1781268648000,-1033.54,0.00027572,7]
[424913981,1781268648000,-1046.67,0.00027572,7]
[424913972,1781268648000,-1046.67,0.0002755,30]
[424913979,1781268648000,-318.72,0.0002755,2]
[424913985,1781268648000,-300.53,0.0002758,7]
[424913986,1781268648000,-318.72,0.0002758,7]
[424913990,1781268648000,-173.66874818,0.00027582,2]
[424913989,1781268648000,-164.25451483,0.00027582,7]
[424913987,1781268648000,-166.88226558,0.00027582,7]
[424913988,1781268648000,-182.73584758,0.00027582,7]
[424913956,1781268648000,-1000.0,0.000274,2]
[424913984,1781268648000,-7946.79,0.00027572,7]
[424913983,1781268648000,-7949.64,0.00027572,7]
[424913980,1781268648000,-7343.44906484,0.00027551,2]
[424913969,1781268648000,-2000.0,0.00027472,2]
[424913955,1781268648000,-1008.96,0.000274,2]
[424913973,1781268648000,-300.53,0.0002755,2]
[424913957,1781268648000,-1567.74,0.000274,2]
[424913954,1781268648000,-1000.0,0.000274,2]
[424913958,1781268648000,-3129.98,0.000274,2]
[424913960,1781268648000,-3129.98,0.000274,2]
[424913962,1781268648000,-3129.98,0.000274,2]
[424913965,1781268648000,-555.0,0.00027413,30]
[424913959,1781268648000,-3129.98,0.000274,2]
[424913967,1781268648000,-205.43520083,0.00027455,7]
[424913961,1781268648000,-3129.98,0.000274,2]
[424913966,1781268648000,-170.64880648,0.00027455,7]
[424913963,1781268648000,-2000.0,0.00027413,30]
[424913968,1781268648000,-184.81478514,0.00027461,7]
[424913971,1781268648000,-500.0,0.000275,7]
[424913964,1781268648000,-1311.0,0.00027413,30]
[424913970,1781268648000,-837.99,0.0002748,7]
[424914017,1781268649000,-178.14738175,0.00027592,7]
[424914032,1781268649000,-219.14192279,0.00027607,7]
[424914026,1781268649000,-195.81342519,0.00027607,7]
[424914024,1781268649000,-187.50093057,0.00027607,7]
[424914018,1781268649000,-206.41594157,0.00027592,7]
[424914020,1781268649000,-174.12964979,0.00027607,7]
[424914016,1781268649000,-245.79717029,0.00027592,7]
[424914029,1781268649000,-156.17684689,0.00027607,7]
[424914019,1781268649000,-502.78,0.00027593,2]
[424914023,1781268649000,-169.5244345,0.00027607,7]
[424914033,1781268649000,-154.21464799,0.00027607,7]
[424914041,1781268649000,-300.53,0.00027611,30]
[424914027,1781268649000,-184.34219698,0.00027607,7]
[424914031,1781268649000,-154.15789036,0.00027607,7]
[424914030,1781268649000,-202.90926725,0.00027607,7]
[424914025,1781268649000,-164.57077221,0.00027607,7]
[424914035,1781268649000,-180.86082263,0.00027607,7]
[424914034,1781268649000,-153.73273642,0.00027607,7]
[424914036,1781268649000,-179.64513409,0.00027607,7]
[424914038,1781268649000,-172.22724524,0.00027607,7]
[424914039,1781268649000,-151.44553871,0.00027607,7]
[424914022,1781268649000,-197.72490934,0.00027607,7]
[424914028,1781268649000,-161.03749456,0.00027607,7]
[424914021,1781268649000,-202.33174959,0.00027607,7]
[424913997,1781268649000,-197.32789846,0.00027592,7]
[424914014,1781268649000,-177.90441195,0.00027592,7]
[424914042,1781268649000,-318.72,0.00027611,30]
[424913994,1781268649000,-165.43115917,0.00027592,5]
[424913991,1781268649000,-163.77177079,0.00027582,7]
[424913993,1781268649000,-187.0457713,0.00027592,7]
[424913992,1781268649000,-184.66128239,0.00027592,7]
[424913996,1781268649000,-212.16724365,0.00027592,7]
[424913995,1781268649000,-192.53409139,0.00027592,7]
[424913998,1781268649000,-181.95846465,0.00027592,7]
[424913999,1781268649000,-186.86920099,0.00027592,7]
[424914001,1781268649000,-198.55611389,0.00027592,7]
[424914003,1781268649000,-164.71412519,0.00027592,7]
[424914000,1781268649000,-170.48678289,0.00027592,7]
[424914002,1781268649000,-160.98994999,0.00027592,7]
[424914004,1781268649000,-185.12799816,0.00027592,7]
[424914005,1781268649000,-178.11734989,0.00027592,7]
[424914006,1781268649000,-171.82444151,0.00027592,7]
[424914008,1781268649000,-174.51050636,0.00027592,7]
[424914011,1781268649000,-318.2368056,0.00027592,7]
[424914009,1781268649000,-190.08521751,0.00027592,7]
[424914010,1781268649000,-288.97201583,0.00027592,7]
[424914007,1781268649000,-199.35334498,0.00027592,7]
[424914012,1781268649000,-210.22944069,0.00027592,7]
[424914013,1781268649000,-173.7756136,0.00027592,7]
[424914015,1781268649000,-160.40629102,0.00027592,7]
[424914037,1781268649000,-157.54435938,0.00027607,7]
[424914073,1781268649000,-612.34,0.00027872,2]
[424914040,1781268649000,-170.68002088,0.00027607,7]
[424914071,1781268649000,-361.0,0.00027867,10]
[424914074,1781268649000,-300.53,0.00027885,30]
[424914072,1781268649000,-613.45,0.00027872,2]
[424914075,1781268649000,-1046.67,0.00027892,30]
[424914076,1781268649000,-1033.54,0.00027892,30]
[424914070,1781268649000,-300.53,0.00027855,7]
[424914079,1781268649000,-300.53,0.00027916,2]
[424914078,1781268649000,-7946.79,0.00027892,30]
[424914080,1781268649000,-350.0,0.00027942,3]
[424914081,1781268649000,-300.53,0.00027946,7]
[424914083,1781268649000,-300.53,0.00027977,30]
[424914086,1781268649000,-1096.64692462,0.0002799,2]
[424914087,1781268649000,-220.34,0.00028,2]
[424914085,1781268649000,-6495.0,0.00027984,10]
[424914084,1781268649000,-502.78,0.00027984,2]
[424914088,1781268649000,-1299.66688675,0.00028,60]
[424914089,1781268649000,-600.0,0.00028,2]
[424914091,1781268649000,-1500.0,0.00028,2]
[424914090,1781268649000,-1500.0,0.00028,2]
[424914092,1781268649000,-6695.0,0.00028,2]
[424914094,1781268649000,-613.45,0.00028033,30]
[424914093,1781268649000,-300.53,0.00028007,2]
[424914043,1781268649000,-3049.32,0.0002763,120]
[424914069,1781268649000,-261.62,0.00027855,2]
[424914068,1781268649000,-253.36,0.00027855,2]
[424914082,1781268649000,-150.0,0.00027973,2]
[424914077,1781268649000,-7949.64,0.00027892,30]
[424914066,1781268649000,-300.53,0.00027794,30]
[424914045,1781268649000,-300.53,0.00027641,2]
[424914051,1781268649000,-318.72,0.00027702,30]
[424914046,1781268649000,-318.72,0.00027641,2]
[424914050,1781268649000,-300.53,0.00027702,30]
[424914049,1781268649000,-233.0,0.00027676,2]
[424914048,1781268649000,-318.72,0.00027672,7]
[424914047,1781268649000,-300.53,0.00027672,7]
[424914052,1781268649000,-613.45,0.00027711,7]
[424914053,1781268649000,-612.34,0.00027711,7]
[424914054,1781268649000,-1075.35,0.00027724,2]
[424914056,1781268649000,-150.0,0.00027724,7]
[424914044,1781268649000,-574.49509357,0.00027632,2]
[424914057,1781268649000,-1046.67,0.00027732,2]
[424914055,1781268649000,-150.0,0.00027724,2]
[424914062,1781268649000,-318.72,0.00027733,2]
[424914064,1781268649000,-318.72,0.00027763,7]
[424914058,1781268649000,-1033.54,0.00027732,2]
[424914065,1781268649000,-502.78,0.00027789,2]
[424914067,1781268649000,-300.53,0.00027824,2]
[424914060,1781268649000,-7946.79,0.00027732,2]
[424914061,1781268649000,-300.53,0.00027733,2]
[424914059,1781268649000,-7949.64,0.00027732,2]
[424914063,1781268649000,-300.53,0.00027763,7]
[424914122,1781268650000,-1033.54,0.00028373,30]
[424914133,1781268650000,-1500.0,0.000285,2]
[424914127,1781268650000,-515.0,0.000284,120]
[424914128,1781268650000,-10000.0,0.00028405,2]
[424914132,1781268650000,-418.0,0.00028497,2]
[424914129,1781268650000,-3556.0,0.00028443,2]
[424914126,1781268650000,-1770.42,0.00028381,7]
[424914124,1781268650000,-7946.79,0.00028373,30]
[424914125,1781268650000,-502.78,0.00028376,2]
[424914130,1781268650000,-1275.0,0.00028443,2]
[424914131,1781268650000,-168.44,0.00028493,2]
[424914136,1781268650000,-151.0,0.00028513,7]
[424914134,1781268650000,-2297.45,0.000285,30]
[424914139,1781268650000,-612.34,0.00028516,30]
[424914135,1781268650000,-250.0,0.000285,7]
[424914138,1781268650000,-613.45,0.00028516,30]
[424914141,1781268650000,-1033.54,0.00028533,7]
[424914140,1781268650000,-1046.67,0.00028533,7]